[Event "Early-Titled-Tuesday-Blitz-January-23-2024"]
[Site "Chess.com"]
[Date "2024.01.23"]
[Round "4"]
[White "Seochesspie"]
[Black "ChainedDowntohell"]
[Result "1-0"]
[WhiteElo "2807"]
[BlackElo "2559"]
[TimeControl "180+1"]
[EndTime "8:38:25 PST"]
[Termination "Seochesspie won on time"]

1. Nf3 {[%clk 0:03:00.9]} 1... d5 {[%clk 0:02:59.7]} 2. e3 {[%clk 0:03:00.7]}
2... Nf6 {[%clk 0:02:59.4]} 3. b3 {[%clk 0:03:00.3]} 3... a5 {[%clk 0:02:57]} 4.
c4 {[%clk 0:03:00]} 4... e6 {[%clk 0:02:56.3]} 5. Bb2 {[%clk 0:02:59.5]} 5... a4
{[%clk 0:02:55.1]} 6. bxa4 {[%clk 0:02:55.4]} 6... Bd7 {[%clk 0:02:38.9]} 7. Nc3
{[%clk 0:02:54]} 7... Bb4 {[%clk 0:02:38.5]} 8. Qb3 {[%clk 0:02:53.5]} 8... Na6
{[%clk 0:02:34.8]} 9. cxd5 {[%clk 0:02:50.1]} 9... Bxc3 {[%clk 0:02:34.1]} 10.
Bxc3 {[%clk 0:02:44]} 10... Nc5 {[%clk 0:02:33.6]} 11. Qb4 {[%clk 0:02:40.5]}
11... Qe7 {[%clk 0:01:50.9]} 12. dxe6 {[%clk 0:02:24.4]} 12... Bxe6 {[%clk
0:01:51.1]} 13. a5 {[%clk 0:02:03.5]} 13... Nd5 {[%clk 0:01:46.6]} 14. Qd4
{[%clk 0:01:53.5]} 14... Nxc3 {[%clk 0:01:43.1]} 15. Qxc3 {[%clk 0:01:53.6]}
15... O-O {[%clk 0:01:41.2]} 16. Be2 {[%clk 0:01:51.8]} 16... Na4 {[%clk
0:01:28.8]} 17. Qc2 {[%clk 0:01:48.6]} 17... Rxa5 {[%clk 0:01:27.2]} 18. O-O
{[%clk 0:01:49.1]} 18... Rfa8 {[%clk 0:01:25.8]} 19. Nd4 {[%clk 0:01:29.8]}
19... Nc5 {[%clk 0:00:57.8]} 20. Nxe6 {[%clk 0:01:29]} 20... Qxe6 {[%clk
0:00:44.7]} 21. Bc4 {[%clk 0:01:27.4]} 21... Qe7 {[%clk 0:00:32.8]} 22. d4
{[%clk 0:01:27]} 22... Ne4 {[%clk 0:00:29.4]} 23. Bd3 {[%clk 0:01:18.5]} 23...
Ng5 {[%clk 0:00:19.5]} 24. Rfc1 {[%clk 0:01:08.7]} 24... c6 {[%clk 0:00:19.2]}
25. h4 {[%clk 0:01:06.2]} 25... Ne6 {[%clk 0:00:14.8]} 26. g3 {[%clk 0:01:06.3]}
26... h6 {[%clk 0:00:13.7]} 27. a4 {[%clk 0:01:04.4]} 27... g5 {[%clk
0:00:13.3]} 28. hxg5 {[%clk 0:01:02.2]} 28... Rxg5 {[%clk 0:00:10.2]} 29. Bc4
{[%clk 0:00:53.7]} 29... Ng7 {[%clk 0:00:08]} 30. Bf1 {[%clk 0:00:44.7]} 30...
Nf5 {[%clk 0:00:07.8]} 31. Bg2 {[%clk 0:00:41.8]} 31... Qd6 {[%clk 0:00:05.6]}
32. Qe4 {[%clk 0:00:40.7]} 32... Kf8 {[%clk 0:00:03.4]} 33. Qf4 {[%clk
0:00:34.5]} 33... Qe7 {[%clk 0:00:03.3]} 34. Rc5 {[%clk 0:00:22.3]} 34... Nd6
{[%clk 0:00:02.7]} 35. a5 {[%clk 0:00:22]} 35... Kg7 {[%clk 0:00:01.2]} 36. Re5
{[%clk 0:00:19.7]} 1-0

[Event "Early-Titled-Tuesday-Blitz-January-23-2024"]
[Site "Chess.com"]
[Date "2024.01.23"]
[Round "4"]
[White "Zheenbekov86"]
[Black "HamedWafa4"]
[Result "0-1"]
[WhiteElo "2511"]
[BlackElo "2717"]
[TimeControl "180+1"]
[EndTime "8:38:25 PST"]
[Termination "HamedWafa4 won on time"]

1. d4 {[%clk 0:03:00.6]} 1... g6 {[%clk 0:02:59.9]} 2. Nf3 {[%clk 0:03:00]} 2...
Bg7 {[%clk 0:03:00.2]} 3. c4 {[%clk 0:02:59.4]} 3... d6 {[%clk 0:03:00.3]} 4. g3
{[%clk 0:02:59.6]} 4... Nf6 {[%clk 0:02:59]} 5. Bg2 {[%clk 0:02:59.7]} 5... O-O
{[%clk 0:02:59.7]} 6. O-O {[%clk 0:02:59.9]} 6... Bf5 {[%clk 0:03:00.4]} 7. Nc3
{[%clk 0:02:59.4]} 7... Ne4 {[%clk 0:03:00.5]} 8. Qb3 {[%clk 0:02:55.2]} 8...
Nxc3 {[%clk 0:03:00.2]} 9. bxc3 {[%clk 0:02:55.1]} 9... Be4 {[%clk 0:03:00.5]}
10. a4 {[%clk 0:02:52.4]} 10... c5 {[%clk 0:02:56.4]} 11. a5 {[%clk 0:02:50.7]}
11... Nc6 {[%clk 0:02:54.9]} 12. a6 {[%clk 0:02:49.3]} 12... b6 {[%clk
0:02:53.7]} 13. e3 {[%clk 0:02:43.1]} 13... Na5 {[%clk 0:02:52.7]} 14. Qa4
{[%clk 0:02:41.8]} 14... Rc8 {[%clk 0:02:49.4]} 15. Nd2 {[%clk 0:02:21.6]} 15...
Bd3 {[%clk 0:02:38.8]} 16. h4 {[%clk 0:02:17.3]} 16... Bxf1 {[%clk 0:02:38.3]}
17. Bxf1 {[%clk 0:02:15.2]} 17... e5 {[%clk 0:02:32.8]} 18. d5 {[%clk
0:02:10.9]} 18... f5 {[%clk 0:02:32.3]} 19. e4 {[%clk 0:02:03.5]} 19... f4
{[%clk 0:02:30.2]} 20. Bh3 {[%clk 0:02:02.8]} 20... Rc7 {[%clk 0:02:28.2]} 21.
Nf1 {[%clk 0:01:28.5]} 21... Kh8 {[%clk 0:02:26.3]} 22. Nh2 {[%clk 0:01:00]}
22... Rcf7 {[%clk 0:02:15.4]} 23. Be6 {[%clk 0:00:58.6]} 23... fxg3 {[%clk
0:02:10.7]} 24. fxg3 {[%clk 0:00:58.5]} 24... Rf2 {[%clk 0:02:09.7]} 25. Ra2
{[%clk 0:00:58.1]} 25... Qf6 {[%clk 0:02:08.3]} 26. Bg5 {[%clk 0:00:49.2]} 26...
Rf1+ {[%clk 0:01:53.6]} 27. Nxf1 {[%clk 0:00:40.1]} 27... Qxf1+ {[%clk
0:01:54.5]} 28. Kh2 {[%clk 0:00:40.2]} 28... Nxc4 {[%clk 0:01:48.4]} 29. Qd7
{[%clk 0:00:17.6]} 29... h5 {[%clk 0:01:04.7]} 30. Rg2 {[%clk 0:00:15.9]} 30...
b5 {[%clk 0:00:41.5]} 31. Qxa7 {[%clk 0:00:14.4]} 31... b4 {[%clk 0:00:35.7]}
32. cxb4 {[%clk 0:00:13.1]} 32... cxb4 {[%clk 0:00:36.6]} 33. Qb7 {[%clk
0:00:09]} 33... b3 {[%clk 0:00:32.3]} 34. a7 {[%clk 0:00:08.7]} 34... b2 {[%clk
0:00:32.7]} 35. a8=Q {[%clk 0:00:07.7]} 35... b1=Q {[%clk 0:00:31.8]} 36. Qxb1
{[%clk 0:00:02]} 36... Qxb1 {[%clk 0:00:28.3]} 0-1

[Event "Early-Titled-Tuesday-Blitz-January-23-2024"]
[Site "Chess.com"]
[Date "2024.01.23"]
[Round "4"]
[White "BasilSmash"]
[Black "Better_Chess_Faster"]
[Result "1-0"]
[WhiteElo "2544"]
[BlackElo "2115"]
[TimeControl "180+1"]
[EndTime "8:38:25 PST"]
[Termination "BasilSmash won on time"]

1. e4 {[%clk 0:03:00.9]} 1... Nf6 {[%clk 0:02:58.4]} 2. e5 {[%clk 0:02:58.7]}
2... Nd5 {[%clk 0:02:58.5]} 3. d4 {[%clk 0:02:56.8]} 3... d6 {[%clk 0:02:58.8]}
4. c4 {[%clk 0:02:56.6]} 4... Nb6 {[%clk 0:02:58.8]} 5. exd6 {[%clk 0:02:57.2]}
5... cxd6 {[%clk 0:02:58.3]} 6. Nc3 {[%clk 0:02:56.9]} 6... g6 {[%clk
0:02:58.5]} 7. Be3 {[%clk 0:02:57]} 7... Bg7 {[%clk 0:02:58.6]} 8. Rc1 {[%clk
0:02:57.5]} 8... O-O {[%clk 0:02:58.5]} 9. b3 {[%clk 0:02:58.1]} 9... Bf5 {[%clk
0:02:56.7]} 10. d5 {[%clk 0:02:57.5]} 10... e6 {[%clk 0:02:49.7]} 11. g4 {[%clk
0:02:51.6]} 11... exd5 {[%clk 0:02:49.8]} 12. gxf5 {[%clk 0:02:50.9]} 12... dxc4
{[%clk 0:02:49.7]} 13. bxc4 {[%clk 0:02:45.6]} 13... Nc6 {[%clk 0:02:46.4]} 14.
Nf3 {[%clk 0:02:43.2]} 14... Re8 {[%clk 0:02:40.6]} 15. fxg6 {[%clk 0:02:35.1]}
15... hxg6 {[%clk 0:02:39.5]} 16. Be2 {[%clk 0:02:33.8]} 16... Qd7 {[%clk
0:02:21.7]} 17. O-O {[%clk 0:02:23.3]} 17... Nxc4 {[%clk 0:02:15.6]} 18. Bxc4
{[%clk 0:02:16.3]} 18... Qg4+ {[%clk 0:02:14.6]} 19. Kh1 {[%clk 0:02:16.8]}
19... Qxc4 {[%clk 0:02:11.8]} 20. Nd5 {[%clk 0:02:13.8]} 20... Qe4 {[%clk
0:02:03.5]} 21. Rxc6 {[%clk 0:01:50.5]} 21... bxc6 {[%clk 0:01:58.4]} 22. Nc7
{[%clk 0:01:51.1]} 22... d5 {[%clk 0:01:45.2]} 23. Nxa8 {[%clk 0:01:49.2]} 23...
Rxa8 {[%clk 0:01:44.2]} 24. h3 {[%clk 0:01:47.4]} 24... d4 {[%clk 0:01:20.5]}
25. Bd2 {[%clk 0:01:41]} 25... c5 {[%clk 0:01:13.3]} 26. Kg2 {[%clk 0:01:36.3]}
26... c4 {[%clk 0:01:09.9]} 27. Re1 {[%clk 0:01:35.7]} 27... Qd5 {[%clk
0:01:07.6]} 28. Qe2 {[%clk 0:01:27.8]} 28... c3 {[%clk 0:01:00.9]} 29. Bf4
{[%clk 0:01:22.2]} 29... d3 {[%clk 0:00:58.1]} 30. Qe4 {[%clk 0:01:19]} 30...
Qxe4 {[%clk 0:00:50.5]} 31. Rxe4 {[%clk 0:01:19.9]} 31... d2 {[%clk 0:00:46.5]}
32. Nxd2 {[%clk 0:01:15.8]} 32... cxd2 {[%clk 0:00:44]} 33. Bxd2 {[%clk
0:01:16.7]} 33... Rd8 {[%clk 0:00:40.2]} 34. Be3 {[%clk 0:01:16.1]} 34... Rd7
{[%clk 0:00:37.5]} 35. Ra4 {[%clk 0:01:15.7]} 35... Be5 {[%clk 0:00:22.8]} 36.
Rxa7 {[%clk 0:01:13.9]} 36... Rd5 {[%clk 0:00:16.9]} 37. a4 {[%clk 0:01:12.8]}
37... Bd4 {[%clk 0:00:16.7]} 38. Re7 {[%clk 0:00:52.8]} 38... Bxe3 {[%clk
0:00:15.9]} 39. Rxe3 {[%clk 0:00:53.7]} 39... Rd2 {[%clk 0:00:15.4]} 40. Ra3
{[%clk 0:00:53.6]} 40... Rd6 {[%clk 0:00:15.4]} 41. a5 {[%clk 0:00:54.1]} 41...
Ra6 {[%clk 0:00:15.4]} 42. Kf3 {[%clk 0:00:54.8]} 42... Kg7 {[%clk 0:00:15.6]}
43. Ke4 {[%clk 0:00:55.2]} 43... Kf6 {[%clk 0:00:15.4]} 44. Kd5 {[%clk
0:00:55.7]} 44... Kf5 {[%clk 0:00:14.8]} 45. Kc5 {[%clk 0:00:56.2]} 45... Kf4
{[%clk 0:00:10.8]} 46. Kb5 {[%clk 0:00:56.2]} 46... Ra8 {[%clk 0:00:09.3]} 47.
a6 {[%clk 0:00:56.6]} 47... f5 {[%clk 0:00:08.4]} 48. Kb6 {[%clk 0:00:54.3]}
48... g5 {[%clk 0:00:07.8]} 49. a7 {[%clk 0:00:54.4]} 49... g4 {[%clk
0:00:07.2]} 50. hxg4 {[%clk 0:00:54.7]} 50... fxg4 {[%clk 0:00:08.1]} 51. Kb7
{[%clk 0:00:55.1]} 51... Rh8 {[%clk 0:00:07.3]} 52. a8=Q {[%clk 0:00:55.6]}
52... Rxa8 {[%clk 0:00:06.5]} 53. Kxa8 {[%clk 0:00:56.5]} 53... Ke4 {[%clk
0:00:05.9]} 54. Kb7 {[%clk 0:00:56.1]} 1-0

[Event "Early-Titled-Tuesday-Blitz-January-23-2024"]
[Site "Chess.com"]
[Date "2024.01.23"]
[Round "4"]
[White "pfalcon1949"]
[Black "esrosenberg"]
[Result "0-1"]
[WhiteElo "2013"]
[BlackElo "2350"]
[TimeControl "180+1"]
[EndTime "8:38:25 PST"]
[Termination "esrosenberg won on time"]

1. e4 {[%clk 0:03:00.9]} 1... g6 {[%clk 0:03:00.3]} 2. d4 {[%clk 0:02:59.8]}
2... Bg7 {[%clk 0:03:01]} 3. Nc3 {[%clk 0:02:59.9]} 3... d5 {[%clk 0:03:01.2]}
4. e5 {[%clk 0:02:59.3]} 4... f6 {[%clk 0:02:58.8]} 5. f4 {[%clk 0:02:58.6]}
5... a6 {[%clk 0:02:47.3]} 6. h4 {[%clk 0:02:57]} 6... c5 {[%clk 0:02:29]} 7. h5
{[%clk 0:02:41.3]} 7... cxd4 {[%clk 0:02:22.1]} 8. hxg6 {[%clk 0:02:25.5]} 8...
hxg6 {[%clk 0:01:50.5]} 9. Rxh8 {[%clk 0:02:22.4]} 9... Bxh8 {[%clk 0:01:50.6]}
10. Qxd4 {[%clk 0:02:19.1]} 10... e6 {[%clk 0:01:08.7]} 11. Be3 {[%clk
0:02:13.7]} 11... Nc6 {[%clk 0:01:04.2]} 12. Qa4 {[%clk 0:02:02.5]} 12... fxe5
{[%clk 0:00:58.1]} 13. fxe5 {[%clk 0:02:00.4]} 13... Bxe5 {[%clk 0:00:58.4]} 14.
O-O-O {[%clk 0:01:53.1]} 14... Bd7 {[%clk 0:00:58.2]} 15. Nf3 {[%clk 0:01:25.3]}
15... Bxc3 {[%clk 0:00:52.8]} 16. bxc3 {[%clk 0:01:22.4]} 16... Qf6 {[%clk
0:00:45.9]} 17. Qb3 {[%clk 0:01:04.2]} 17... Na5 {[%clk 0:00:37.4]} 18. Qa3
{[%clk 0:00:57.7]} 18... Nc6 {[%clk 0:00:28.2]} 19. Bd3 {[%clk 0:00:45.8]} 19...
Nge7 {[%clk 0:00:24.7]} 20. Nd4 {[%clk 0:00:34.5]} 20... e5 {[%clk 0:00:14.4]}
21. Nxc6 {[%clk 0:00:32.2]} 21... Qxc6 {[%clk 0:00:11.7]} 22. Bg5 {[%clk
0:00:28.2]} 22... Ng8 {[%clk 0:00:08.3]} 23. Re1 {[%clk 0:00:20.5]} 23... e4
{[%clk 0:00:07.7]} 24. c4 {[%clk 0:00:17.7]} 24... Rc8 {[%clk 0:00:06.3]} 25.
cxd5 {[%clk 0:00:15.4]} 25... Qc5 {[%clk 0:00:06.3]} 26. Qxc5 {[%clk 0:00:11.3]}
26... Rxc5 {[%clk 0:00:06.2]} 27. Bxe4 {[%clk 0:00:12.2]} 27... Kf8 {[%clk
0:00:05.8]} 28. Kd2 {[%clk 0:00:05.2]} 28... Ne7 {[%clk 0:00:04.5]} 29. Bxe7+
{[%clk 0:00:02.3]} 29... Kxe7 {[%clk 0:00:04.9]} 30. Bxg6+ {[%clk 0:00:01.6]}
30... Kf6 {[%clk 0:00:05.6]} 31. Be4 {[%clk 0:00:01.5]} 31... Bg4 {[%clk
0:00:04.2]} 0-1

[Event "Early-Titled-Tuesday-Blitz-January-23-2024"]
[Site "Chess.com"]
[Date "2024.01.23"]
[Round "4"]
[White "ViratKohl_i"]
[Black "Kunalm64"]
[Result "1-0"]
[WhiteElo "2598"]
[BlackElo "2367"]
[TimeControl "180+1"]
[EndTime "8:38:26 PST"]
[Termination "ViratKohl_i won by resignation"]

1. Nf3 {[%clk 0:02:55.9]} 1... Nf6 {[%clk 0:02:49.8]} 2. Rg1 {[%clk 0:02:55.8]}
2... d5 {[%clk 0:02:50]} 3. h3 {[%clk 0:02:54.7]} 3... h5 {[%clk 0:02:49.6]} 4.
b3 {[%clk 0:02:53.1]} 4... c5 {[%clk 0:02:49.4]} 5. Bb2 {[%clk 0:02:53.5]} 5...
Nc6 {[%clk 0:02:49.3]} 6. e3 {[%clk 0:02:54.1]} 6... Bf5 {[%clk 0:02:34.2]} 7.
Bb5 {[%clk 0:02:51.7]} 7... Bd7 {[%clk 0:02:30.7]} 8. Bxc6 {[%clk 0:02:50.3]}
8... Bxc6 {[%clk 0:02:29.6]} 9. Ne5 {[%clk 0:02:50.1]} 9... Qc7 {[%clk
0:02:26.2]} 10. d3 {[%clk 0:02:49.1]} 10... e6 {[%clk 0:02:24.5]} 11. Nd2 {[%clk
0:02:47.7]} 11... Bd6 {[%clk 0:02:18.2]} 12. f4 {[%clk 0:02:46.7]} 12... d4
{[%clk 0:02:02.5]} 13. exd4 {[%clk 0:02:24.4]} 13... cxd4 {[%clk 0:01:45.3]} 14.
Ndc4 {[%clk 0:02:22.4]} 14... Bb4+ {[%clk 0:01:43.3]} 15. Kf2 {[%clk 0:02:14.6]}
15... Nd5 {[%clk 0:01:36.6]} 16. g3 {[%clk 0:01:59.7]} 16... Bc5 {[%clk
0:01:34.8]} 17. Qf3 {[%clk 0:01:54.5]} 17... Nb4 {[%clk 0:01:21.9]} 18. Nxc6
{[%clk 0:01:52.7]} 18... Qxc6 {[%clk 0:01:21.9]} 19. Qxc6+ {[%clk 0:01:50.9]}
19... Nxc6 {[%clk 0:01:22]} 20. Rge1 {[%clk 0:01:44.6]} 20... b5 {[%clk
0:00:49.9]} 21. Ne5 {[%clk 0:01:41.4]} 21... Nxe5 {[%clk 0:00:50.1]} 22. Rxe5
{[%clk 0:01:30.6]} 22... Rc8 {[%clk 0:00:48]} 23. a4 {[%clk 0:01:29.4]} 23...
Bd6 {[%clk 0:00:45.6]} 24. Re2 {[%clk 0:01:26.1]} 24... h4 {[%clk 0:00:40.7]}
25. Bxd4 {[%clk 0:01:17.5]} 25... hxg3+ {[%clk 0:00:40.2]} 26. Kxg3 {[%clk
0:01:16.2]} 26... Rh5 {[%clk 0:00:36]} 27. axb5 {[%clk 0:01:13.6]} 27... Rxb5
{[%clk 0:00:33.9]} 28. Rxa7 {[%clk 0:01:09.5]} 28... Rf5 {[%clk 0:00:33.5]} 29.
Be5 {[%clk 0:01:05.1]} 29... Be7 {[%clk 0:00:32.3]} 30. Bxg7 {[%clk 0:01:02]}
30... Bc5 {[%clk 0:00:28.1]} 31. Rb7 {[%clk 0:00:58.8]} 31... Bd6 {[%clk
0:00:26.5]} 32. Be5 {[%clk 0:00:57.6]} 32... Be7 {[%clk 0:00:26.4]} 33. Kg4
{[%clk 0:00:49.3]} 33... Bd8 {[%clk 0:00:12.3]} 34. h4 {[%clk 0:00:46.1]} 34...
Rc5 {[%clk 0:00:11.2]} 35. h5 {[%clk 0:00:35.5]} 35... f6 {[%clk 0:00:10.5]} 36.
Bd6 {[%clk 0:00:34]} 36... Rxh5 {[%clk 0:00:09.5]} 37. Rxe6+ {[%clk 0:00:33.5]}
1-0

[Event "Early-Titled-Tuesday-Blitz-January-23-2024"]
[Site "Chess.com"]
[Date "2024.01.23"]
[Round "4"]
[White "Alen_Yeremyann"]
[Black "ImportedItalianMaple"]
[Result "0-1"]
[WhiteElo "2770"]
[BlackElo "2460"]
[TimeControl "180+1"]
[EndTime "8:38:32 PST"]
[Termination "ImportedItalianMaple won by resignation"]

1. e4 {[%clk 0:03:00.9]} 1... g6 {[%clk 0:03:00.2]} 2. d4 {[%clk 0:03:00.9]}
2... Bg7 {[%clk 0:03:00.5]} 3. Nc3 {[%clk 0:03:01.5]} 3... d5 {[%clk 0:03:00.8]}
4. exd5 {[%clk 0:03:01.4]} 4... Nf6 {[%clk 0:03:01.4]} 5. Bc4 {[%clk 0:03:00.7]}
5... Nbd7 {[%clk 0:03:01.1]} 6. Bb3 {[%clk 0:02:59.8]} 6... Nb6 {[%clk
0:03:00.6]} 7. Qf3 {[%clk 0:03:00.1]} 7... a5 {[%clk 0:02:48.7]} 8. a4 {[%clk
0:02:59.9]} 8... O-O {[%clk 0:02:38.7]} 9. h3 {[%clk 0:02:59.3]} 9... e6 {[%clk
0:02:06.6]} 10. dxe6 {[%clk 0:02:58.4]} 10... Bxe6 {[%clk 0:02:07.3]} 11. Bxe6
{[%clk 0:02:58]} 11... Re8 {[%clk 0:02:08]} 12. Nge2 {[%clk 0:02:57.5]} 12...
Rxe6 {[%clk 0:02:08.1]} 13. O-O {[%clk 0:02:58.1]} 13... c6 {[%clk 0:02:03.3]}
14. Be3 {[%clk 0:02:56.7]} 14... Nc4 {[%clk 0:02:03.6]} 15. Nf4 {[%clk 0:02:40]}
15... Re8 {[%clk 0:01:58.9]} 16. Nd3 {[%clk 0:02:32.2]} 16... Nd5 {[%clk
0:01:42.3]} 17. Nxd5 {[%clk 0:02:31.5]} 17... cxd5 {[%clk 0:01:36.7]} 18. b3
{[%clk 0:02:28.9]} 18... Nxe3 {[%clk 0:01:21.1]} 19. fxe3 {[%clk 0:02:29.8]}
19... Re7 {[%clk 0:01:20.9]} 20. Nf4 {[%clk 0:02:18.1]} 20... Rd7 {[%clk
0:01:10.3]} 21. c4 {[%clk 0:02:15.8]} 21... dxc4 {[%clk 0:01:09.6]} 22. bxc4
{[%clk 0:02:16.7]} 22... Rc8 {[%clk 0:01:03]} 23. c5 {[%clk 0:02:14.9]} 23... b6
{[%clk 0:00:55.7]} 24. cxb6 {[%clk 0:02:09.6]} 24... Qxb6 {[%clk 0:00:56.6]} 25.
Rab1 {[%clk 0:02:09.7]} 25... Qd6 {[%clk 0:00:52.7]} 26. Kh1 {[%clk 0:02:08.4]}
26... Qa3 {[%clk 0:00:52.7]} 27. Rb7 {[%clk 0:02:03]} 27... Rxb7 {[%clk
0:00:49.6]} 28. Qxb7 {[%clk 0:02:03.9]} 28... Rf8 {[%clk 0:00:48.8]} 29. Nd5
{[%clk 0:01:50.8]} 29... Qxa4 {[%clk 0:00:43]} 30. Ne7+ {[%clk 0:01:51]} 30...
Kh8 {[%clk 0:00:42.7]} 31. d5 {[%clk 0:01:51.6]} 31... Qe4 {[%clk 0:00:38.6]}
32. Qd7 {[%clk 0:01:46.6]} 32... Rb8 {[%clk 0:00:32.8]} 33. Nc6 {[%clk
0:01:45.1]} 33... Rg8 {[%clk 0:00:22.2]} 34. Qxf7 {[%clk 0:01:37.2]} 34... Qxe3
{[%clk 0:00:20.6]} 35. Ne7 {[%clk 0:01:37.3]} 35... Rf8 {[%clk 0:00:17.5]} 36.
Nf5 {[%clk 0:00:43.8]} 36... gxf5 {[%clk 0:00:13.2]} 37. Qd7 {[%clk 0:00:39.9]}
37... Be5 {[%clk 0:00:13]} 38. Qe7 {[%clk 0:00:35.7]} 38... Rg8 {[%clk
0:00:11.6]} 39. Qh4 {[%clk 0:00:25.2]} 39... Qe2 {[%clk 0:00:08.2]} 40. Rg1
{[%clk 0:00:22.9]} 40... Qe4 {[%clk 0:00:06.7]} 41. d6 {[%clk 0:00:19.6]} 41...
Qxh4 {[%clk 0:00:06.6]} 0-1

[Event "Early-Titled-Tuesday-Blitz-January-23-2024"]
[Site "Chess.com"]
[Date "2024.01.23"]
[Round "4"]
[White "FMVolodymyrSakun"]
[Black "dirk_da_player"]
[Result "0-1"]
[WhiteElo "2545"]
[BlackElo "2376"]
[TimeControl "180+1"]
[EndTime "8:38:32 PST"]
[Termination "dirk_da_player won by checkmate"]

1. e4 {[%clk 0:03:00.9]} 1... e5 {[%clk 0:02:58.7]} 2. Nf3 {[%clk 0:02:59.8]}
2... d6 {[%clk 0:02:58.9]} 3. d4 {[%clk 0:02:58.8]} 3... exd4 {[%clk 0:02:59.7]}
4. Nxd4 {[%clk 0:02:58.5]} 4... Nf6 {[%clk 0:03:00.2]} 5. Nc3 {[%clk 0:02:58.1]}
5... Be7 {[%clk 0:03:00.4]} 6. h3 {[%clk 0:02:54.9]} 6... O-O {[%clk 0:03:00]}
7. Be2 {[%clk 0:02:48.7]} 7... d5 {[%clk 0:02:55.4]} 8. exd5 {[%clk 0:02:43.9]}
8... Nxd5 {[%clk 0:02:55.1]} 9. Ne4 {[%clk 0:02:37.2]} 9... c5 {[%clk
0:02:40.8]} 10. Nf3 {[%clk 0:02:26.7]} 10... Bf5 {[%clk 0:02:33.4]} 11. Ng3
{[%clk 0:02:22.9]} 11... Bg6 {[%clk 0:02:33.3]} 12. c3 {[%clk 0:02:17]} 12...
Nc6 {[%clk 0:02:28.5]} 13. O-O {[%clk 0:02:13.5]} 13... Qd7 {[%clk 0:02:14.5]}
14. Re1 {[%clk 0:02:05.1]} 14... Rad8 {[%clk 0:02:13.6]} 15. Bb5 {[%clk
0:02:01.6]} 15... Qc7 {[%clk 0:02:10]} 16. Qa4 {[%clk 0:01:59.4]} 16... Bd6
{[%clk 0:01:41.4]} 17. Bxc6 {[%clk 0:01:51.7]} 17... bxc6 {[%clk 0:01:33]} 18.
Ne4 {[%clk 0:01:44.6]} 18... Rfe8 {[%clk 0:01:10.4]} 19. Bg5 {[%clk 0:01:33.8]}
19... f6 {[%clk 0:01:04.2]} 20. Nxd6 {[%clk 0:01:28]} 20... Qxd6 {[%clk
0:00:58.4]} 21. Bh4 {[%clk 0:01:26.2]} 21... Qd7 {[%clk 0:00:40.2]} 22. Qc4
{[%clk 0:01:19.9]} 22... Kh8 {[%clk 0:00:23.5]} 23. Qxc5 {[%clk 0:01:17.4]}
23... Nf4 {[%clk 0:00:18.8]} 24. Rxe8+ {[%clk 0:01:04.2]} 24... Rxe8 {[%clk
0:00:19.7]} 25. Bg3 {[%clk 0:01:03.8]} 25... Ne2+ {[%clk 0:00:19.6]} 26. Kh2
{[%clk 0:01:03.8]} 26... Be4 {[%clk 0:00:18.5]} 27. Nd4 {[%clk 0:00:55.9]} 27...
Nxg3 {[%clk 0:00:13.7]} 28. fxg3 {[%clk 0:00:54.2]} 28... h6 {[%clk 0:00:13.9]}
29. Re1 {[%clk 0:00:51.3]} 29... Re5 {[%clk 0:00:14.5]} 30. Qf8+ {[%clk
0:00:49.2]} 30... Kh7 {[%clk 0:00:14.5]} 31. Qb8 {[%clk 0:00:43.4]} 31... c5
{[%clk 0:00:14.8]} 32. Nb3 {[%clk 0:00:34.7]} 32... Qd5 {[%clk 0:00:11.6]} 33.
Re2 {[%clk 0:00:30.7]} 33... Qd1 {[%clk 0:00:09.9]} 34. Rxe4 {[%clk 0:00:21.8]}
34... Rxe4 {[%clk 0:00:09.3]} 35. Nxc5 {[%clk 0:00:20.8]} 35... Re1 {[%clk
0:00:09.9]} 36. g4 {[%clk 0:00:19.6]} 36... Rh1+ {[%clk 0:00:09.7]} 37. Kg3
{[%clk 0:00:19.6]} 37... Qe1+ {[%clk 0:00:10.6]} 38. Kf4 {[%clk 0:00:14.1]}
38... Rf1# {[%clk 0:00:11.5]} 0-1

[Event "Early-Titled-Tuesday-Blitz-January-23-2024"]
[Site "Chess.com"]
[Date "2024.01.23"]
[Round "4"]
[White "KanalSzachowy"]
[Black "Maxfan2008"]
[Result "0-1"]
[WhiteElo "2339"]
[BlackElo "2530"]
[TimeControl "180+1"]
[EndTime "8:38:33 PST"]
[Termination "Maxfan2008 won on time"]

1. e4 {[%clk 0:03:00.9]} 1... c5 {[%clk 0:02:57.8]} 2. Nc3 {[%clk 0:03:00.4]}
2... Nc6 {[%clk 0:02:56.2]} 3. Bb5 {[%clk 0:02:59.2]} 3... Nd4 {[%clk
0:02:55.3]} 4. Nf3 {[%clk 0:02:58.8]} 4... Nxb5 {[%clk 0:02:54]} 5. Nxb5 {[%clk
0:02:59.7]} 5... a6 {[%clk 0:02:50]} 6. Nc3 {[%clk 0:02:59]} 6... e6 {[%clk
0:02:50.1]} 7. d4 {[%clk 0:02:59]} 7... cxd4 {[%clk 0:02:51]} 8. Qxd4 {[%clk
0:02:58.2]} 8... Qc7 {[%clk 0:02:46.7]} 9. Be3 {[%clk 0:02:44.4]} 9... d6 {[%clk
0:02:27.6]} 10. O-O-O {[%clk 0:02:35.6]} 10... Nf6 {[%clk 0:02:26.7]} 11. e5
{[%clk 0:02:23.6]} 11... dxe5 {[%clk 0:02:18.1]} 12. Nxe5 {[%clk 0:02:24.5]}
12... Be7 {[%clk 0:02:10.6]} 13. Bf4 {[%clk 0:02:18.6]} 13... Qc5 {[%clk
0:01:58.8]} 14. Qd2 {[%clk 0:01:46.2]} 14... O-O {[%clk 0:01:55.8]} 15. Nd3
{[%clk 0:01:45.4]} 15... Qa5 {[%clk 0:01:47.6]} 16. f3 {[%clk 0:01:31.5]} 16...
b5 {[%clk 0:01:39.7]} 17. Kb1 {[%clk 0:01:31.2]} 17... b4 {[%clk 0:01:30.7]} 18.
Ne4 {[%clk 0:01:12.7]} 18... Nxe4 {[%clk 0:01:05.1]} 19. fxe4 {[%clk 0:01:13.6]}
19... Bb7 {[%clk 0:01:04.8]} 20. e5 {[%clk 0:01:02]} 20... Rac8 {[%clk
0:01:00.6]} 21. Qf2 {[%clk 0:00:59.7]} 21... Bd5 {[%clk 0:00:53.2]} 22. b3
{[%clk 0:00:52.1]} 22... Rc7 {[%clk 0:00:50.6]} 23. Qg3 {[%clk 0:00:46.8]} 23...
Rfc8 {[%clk 0:00:47.5]} 24. Rd2 {[%clk 0:00:43]} 24... Be4 {[%clk 0:00:37]} 25.
Rc1 {[%clk 0:00:38.2]} 25... Qa3 {[%clk 0:00:19.7]} 26. Rf2 {[%clk 0:00:27.1]}
26... Bf8 {[%clk 0:00:19.3]} 27. Be3 {[%clk 0:00:20.7]} 27... Bxd3 {[%clk
0:00:16.8]} 28. Qf3 {[%clk 0:00:11.3]} 28... Bg6 {[%clk 0:00:16.2]} 29. h4
{[%clk 0:00:10.5]} 29... h5 {[%clk 0:00:15.4]} 30. g4 {[%clk 0:00:08.6]} 30...
hxg4 {[%clk 0:00:15.5]} 31. Qxg4 {[%clk 0:00:09.1]} 31... Rc3 {[%clk 0:00:15.6]}
32. h5 {[%clk 0:00:08.1]} 32... Rxb3+ {[%clk 0:00:13.7]} 33. axb3 {[%clk
0:00:04.9]} 33... Qxb3+ {[%clk 0:00:14.6]} 34. Ka1 {[%clk 0:00:05.2]} 34... Qa3+
{[%clk 0:00:15.2]} 35. Kb1 {[%clk 0:00:05.4]} 35... b3 {[%clk 0:00:15.5]} 0-1